Cogmind - Beta 10.2 @@@ ROGUE MODE // 2021.12.16 @ 00:08:19 Player: pGoos Result: Destroyed by G-34 Mercenary with Small Laser Performance ------------- Evolutions (1) 500 Regions Visited (3) 600 Robots Destroyed (25) 125 Value Destroyed (664) 664 Prototype IDs (0) 0 Alien Tech Used (0) 0 Bonus (142) 142 TOTAL SCORE: 2031 Bonus ------- High Alert Combat Kills 96 Follower Combat Kills 46 Cogmind --------- Core Integrity 0/400 Matter 366/400 Energy 250/250 System Corruption 0% Temperature Cool (6) Movement Walking (120) Location -9/Materials Parts ------- > --- POWER (1) -------- Ion Engine > --- PROPULSION (2) --- Aluminum Leg Aluminum Leg > --- UTILITY (4) ------ Small Storage Unit Medium Matter Pod Signal Interpreter > --- WEAPON (2) ------- Autogun > --- INVENTORY (6) ---- Light Nuclear Core Aluminum Leg Aluminum Leg Aluminum Leg Beam Rifle Light EM Pulse Cannon Peak State ------------ > --- POWER ------------ Ion Engine > --- PROPULSION ------- Aluminum Leg Aluminum Leg > --- UTILITY ---------- Small Storage Unit Sensor Array Signal Interpreter Advanced Terrain Scanner > --- WEAPON ----------- Light EM Pulse Cannon Heavy Assault Rifle > --- INVENTORY -------- Light Ion Engine Aluminum Leg Beam Rifle Light EM Pulse Cannon Light Assault Rifle Autogun [Rating: 13] Favorites ----------- Power Ion Engine Engine Ion Engine Propulsion Aluminum Leg Treads Light Treads Leg Aluminum Leg Utility Small Storage Unit Device ECM Suite Storage Small Storage Unit Processor Signal Interpreter Weapon Assault Rifle Energy Gun EM Pulse Gun Energy Cannon Light EM Pulse Cannon Ballistic Gun Assault Rifle Build | -11 -10 -10 -9 ------- Run | Scr Mat Min Mat Slots Evolved 2 | . . . 2 Power . | . . . . Propulsion . | . . . . Utility 2 | . . . 2 Weapon . | . . . . Parts Attached 36 | 6 5 . 25 Power 5 | 1 1 . 3 Engine 5 | 1 1 . 3 Core . | . . . . Reactor . | . . . . Propulsion 11 | 2 2 . 7 Treads 2 | 2 . . . Leg 9 | . 2 . 7 Wheel . | . . . . Hover . | . . . . Flight . | . . . . Utility 7 | 1 1 . 5 Device 4 | . 1 . 3 Storage 2 | 1 . . 1 Processor 1 | . . . 1 Hackware . | . . . . Protection . | . . . . Artifact . | . . . . Weapon 13 | 2 1 . 10 Energy Gun 3 | 1 1 . 1 Energy Cannon 3 | . . . 3 Ballistic Gun 7 | 1 . . 6 Ballistic Cannon . | . . . . Launcher . | . . . . Special Weapon . | . . . . Impact Weapon . | . . . . Slashing Weapon . | . . . . Piercing Weapon . | . . . . Special Melee Weapon . | . . . . Unidentified Prototypes . | . . . . Parts Lost 16 | . 1 . 15 Power 2 | . . . 2 Propulsion 3 | . . . 3 Utility 4 | . . . 4 Weapon 7 | . 1 . 6 Highest Loss Streak 7 | . 1 . 7 Average Slot Usage (%) 93 | . 96 100 88 Engine 11 | . 14 14 9 Treads 4 | . 20 . . Leg 20 | . 7 28 20 Device 13 | . 11 14 14 Storage 13 | . 14 14 13 Processor 4 | . . . 9 Energy Gun 8 | . 12 14 2 Energy Cannon 3 | . . . 6 Ballistic Gun 12 | . 14 14 11 Naked Turns . | . . . . Heaviest Build 18 | 13 14 14 18 Greatest Support 40 | 40 40 20 20 Greatest Overweight (x) 2 | . . . 2 Average Overweight (x) . | . . . . Largest Inventory Capacity 6 | 6 6 6 6 Average Capacity 5 | 5 6 6 6 Most Carried 6 | 4 6 6 6 Average Carried 5 | 2 4 5 5 Final Capacity 6 | 6 6 6 6 Final Carried 6 | 4 5 6 6 Class Distribution -------------------- 77% | Mutant 13% | Scavenger-Mutant 9% | Scavenger-Skirmisher Dominant Class ---------------- Mutant | -10/Materials Mutant | -10/Mines Mutant | -9/Materials Resources | -11 -10 -10 -9 ----------- Run | Scr Mat Min Mat Matter Collected 891 | 260 132 . 499 Remotely . | . . . . Salvage Created 912 | . 285 . 627 Parts 58 | . 11 . 47 Haulers Intercepted . | . . . . Recyclers Shooed . | . . . . Parts Field Recycled . | . . . . Retrieved Matter . | . . . . Parts Self-Destructed . | . . . . Prevented . | . . . . Kills | -11 -10 -10 -9 ------- Run | Scr Mat Min Mat Combat Hostiles Destroyed 24 | . 5 . 19 Guns 20 | . 5 . 15 Cannons 4 | . . . 4 Classes Destroyed 4 | . 2 . 2 Recycler 1 | . 1 . . Swarmer 9 | . . . 9 Grunt 13 | . 5 . 8 Sentry 2 | . . . 2 Best Kill Streak 10 | . 5 . 10 Combat Bots Only 10 | . 4 . 10 Max Kills in Single Turn 2 | . 1 . 2 Gunslinging 1 | . . . 1 Exploded . | . . . . Melee . | . . . . Uniques/NPCs Destroyed . | . . . . Combat | -11 -10 -10 -9 -------- Run | Scr Mat Min Mat Damage Taken 2005 | . 356 . 1649 Core 452 | . 45 . 407 Absorbed by Shields . | . . . . Core Remaining (%) 91 | 100 . 82 . Volleys Fired 105 | . 29 . 76 Largest 2 | . 2 . 2 Hottest 80 | . 70 . 80 Shots Fired 168 | . 48 . 120 Gun 146 | . 48 . 98 Cannon 22 | . . . 22 Launcher . | . . . . Special . | . . . . Kinetic 121 | . 29 . 92 Thermal 15 | . 14 . 1 Explosive . | . . . . Electromagnetic 32 | . 5 . 27 Robot Hit Streak 18 | . 18 . 12 Robot Miss Streak 5 | . 1 . 5 Penetration Max . | . . . . Secondary Targets 6 | . 1 . 5 Max Gunslinging Chain 1 | . 1 . 1 Shots Hit Robots 123 | . 39 . 84 Core Hits 44 | . 11 . 33 Critical Hits . | . . . . Critical Kills . | . . . . Critical Parts Destroyed . | . . . . Melee Attacks . | . . . . Impact . | . . . . Slashing . | . . . . Piercing . | . . . . Sneak Attacks . | . . . . Combat Hostiles . | . . . . Follow-up Attacks . | . . . . Damage Inflicted 1769 | . 468 . 1301 Guns 1318 | . 468 . 850 Cannons 435 | . . . 435 Explosions . | . . . . Melee . | . . . . Ramming 16 | . . . 16 Kinetic 1137 | . 297 . 840 Thermal 113 | . 113 . . Explosive . | . . . . Electromagnetic 503 | . 58 . 445 Impact . | . . . . Slashing . | . . . . Piercing . | . . . . Highest Corruption . | . . . . Average Corruption . | . . . . Corruption Purged . | . . . . Overload Shots . | . . . . Overflow Damage 34 | . . . 34 Projectiles 34 | . . . 34 Explosions . | . . . . Melee . | . . . . Knockbacks . | . . . . Impact . | . . . . Kinetic . | . . . . Secondary . | . . . . Self-Inflicted Damage 7 | . . . 7 Shots . | . . . . Rammed 7 | . . . 7 Targets Rammed 8 | . . . 8 Kicked 1 | . . . 1 Crushed . | . . . . Highest Temperature 189 | . 147 . 189 Average Temperature 65 | . 53 . 71 Received Heat Transfer 792 | . 195 . 597 Siege Activations . | . . . . Robots Corrupted . | . . . . Combat Hostiles . | . . . . Parts Fried 3 | . . . 3 Impact Corruptions . | . . . . Robots Melted . | . . . . Combat Hostiles . | . . . . Parts Melted . | . . . . Heat Transferred 333 | . 333 . . Parts Sabotaged . | . . . . Parts Stolen . | . . . . Parts Stripped . | . . . . Power Chain Reactions . | . . . . Missiles Intercepted . | . . . . Alert | -11 -10 -10 -9 ------- Run | Scr Mat Min Mat Peak Influence 603 | . 310 120 603 Initial 120 | . . 120 . Average 230 | . 134 112 367 Maximum Alert Level 2 | . 1 . 2 Low Security (%) 61 | 100 68 100 30 Level 1 8 | . 31 . 6 Level 2 29 | . . . 62 Level 3 . | . . . . Level 4 . | . . . . Level 5 . | . . . . High Security . | . . . . Max Security . | . . . . Squads Dispatched 4 | . 2 . 2 Investigation 1 | . 1 . . Extermination . | . . . . Reinforcement 2 | . 1 . 1 Assault 1 | . . . 1 Garrison . | . . . . Intercept . | . . . . Construction Impeded . | . . . . Haulers Reinforced . | . . . . Stealth | -11 -10 -10 -9 --------- Run | Scr Mat Min Mat Distress Signals 3 | . . . 3 Communications Jammed . | . . . . Distress Signals . | . . . . Times Spotted 55 | . 17 . 38 Peak Tracking Total 11 | . 5 . 11 Tactical Retreats 10 | . 4 . 6 Traps | -11 -10 -10 -9 ------- Run | Scr Mat Min Mat Traps Triggered 2 | . 1 . 1 Indirectly . | . . . . Trap Hack Attempts . | . . . . Triggered . | . . . . Disarmed 6 | . . . 6 Reprogrammed . | . . . . Reused . | . . . . Traps Extracted . | . . . . Installed . | . . . . Triggered . | . . . . Machines | -11 -10 -10 -9 ---------- Run | Scr Mat Min Mat Machines Disabled 1 | . . . 1 Max in Single Turn 1 | . . . 1 Machines Sabotaged . | . . . . Garrisons Compromised . | . . . . Overloaded Fab Kills . | . . . . Fab Network Shutdowns . | . . . . Hacking | -11 -10 -10 -9 --------- Run | Scr Mat Min Mat Machines Accessed 3 | . 1 . 2 Terminals 3 | . 1 . 2 Fabricators . | . . . . Repair Stations . | . . . . Recycling Units . | . . . . Scanalyzers . | . . . . Garrison Access . | . . . . Total Hacks 10 | . 3 . 7 Successful 6 | . 1 . 5 Failed 4 | . 2 . 2 Catastrophic . | . . . . Database Lockouts . | . . . . Manual . | . . . . Terminals 10 | . 3 . 7 Fabricators . | . . . . Repair Stations . | . . . . Recycling Units . | . . . . Scanalyzers . | . . . . Garrison Access . | . . . . Terminal Hacks 6 | . 1 . 5 Locate Traps 1 | . . . 1 Disarm Traps 1 | . . . 1 Security Status 1 | . . . 1 Assault Status 1 | . . . 1 Zone Layout 2 | . 1 . 1 Fabricator Hacks . | . . . . Repair Station Hacks . | . . . . Recycling Unit Hacks . | . . . . Scanalyzer . | . . . . Garrison Access Hacks . | . . . . Unauthorized Hacks . | . . . . Terminals . | . . . . Fabricators . | . . . . Repair Stations . | . . . . Recycling Units . | . . . . Scanalyzers . | . . . . Garrison Access . | . . . . Data Cores Recovered . | . . . . Used . | . . . . Hacking Detections 3 | . 1 . 2 Full Trace Events 1 | . . . 1 Feedback Events . | . . . . Feedback Blocked . | . . . . Robot Schematics Acquired . | . . . . Robots Built . | . . . . Matter . | . . . . Time . | . . . . Total Robot Build Rating . | . . . . Part Schematics Acquired . | . . . . Parts Built . | . . . . Matter . | . . . . Time . | . . . . Total Part Build Rating . | . . . . Parts Repaired . | . . . . Time . | . . . . Parts Recycled . | . . . . Recycled Matter . | . . . . Retrieved Matter . | . . . . Retrieved Components . | . . . . Parts Scanalyzed . | . . . . Part Schematics Acquired . | . . . . Parts Damaged . | . . . . Bothacking | -11 -10 -10 -9 ------------ Run | Scr Mat Min Mat Used RIF Installer . | . . . . Robots Hacked . | . . . . Non-combat . | . . . . Combat . | . . . . Robot Hacks Applied . | . . . . Relay Couplers Released . | . . . . Robots Rewired . | . . . . Allies Hacked . | . . . . Hacks Repelled . | . . . . Allies | -11 -10 -10 -9 -------- Run | Scr Mat Min Mat Total Allies 2 | . . 2 . Largest Group 2 | . . 2 2 Highest-Rated Group 41 | . . 41 41 Highest-Rated Ally 31 | . . 31 31 Total Orders . | . . . . Ally Attacks 24 | . . . 24 Total Damage 296 | . . . 296 Kills 5 | . . . 5 Allies Corrupted . | . . . . Allies Melted . | . . . . Intel | -11 -10 -10 -9 ------- Run | Scr Mat Min Mat Robot Analysis Total . | . . . . Derelict Logs Recovered 2 | . . 2 . Drone Launches . | . . . . Drone Recoveries . | . . . . Exploration | -11 -10 -10 -9 ------------- Run | Scr Mat Min Mat Turns Passed 1469 | 79 271 426 693 Spaces Moved 841 | 42 121 346 332 Core 10 | 3 . . 7 Treads 110 | 39 71 . . Legs 721 | . 50 346 325 Wheels . | . . . . Hover . | . . . . Flight . | . . . . Fastest Speed 50 | 50 120 120 120 Average Speed 125 | 152 143 120 120 Slowest Speed 160 | 160 160 120 150 Overloaded Moves . | . . . . Propulsion Burnouts . | . . . . Robots Hopped . | . . . . Cave-ins Triggered . | . . . . Exploration Rate (%) 33 | 3 25 79 25 Regions Visited 3 Branch Regions 1 Pre-discovered Areas 3 | . . 3 . Known Exits Taken . | . . . . Unknown Exits Taken 3 | 1 1 1 . Scrap Searched 1 | . . 1 . Spaces Dug . | . . . . Terrain Destroyed . | . . . . Melee . | . . . . Projectile . | . . . . AOE . | . . . . Terrain Rammed . | . . . . Walls Destroyed . | . . . . Machines Disabled . | . . . . Actions | -11 -10 -10 -9 --------- Run | Scr Mat Min Mat Total 1099 | 55 172 357 515 Wait 77 | . 7 11 59 Move 838 | 41 120 345 332 Hop . | . . . . Pick Up 19 | 6 5 1 7 Fast Attach 15 | 6 1 . 8 Attach 13 | . 3 . 10 Detach 4 | . 2 . 2 Swap 8 | . 1 . 7 Drop 12 | 2 4 . 6 Fire 105 | . 29 . 76 Melee . | . . . . Ram 2 | . . . 2 Kick 6 | . . . 6 Crush . | . . . . Escape Stasis . | . . . . Rewire . | . . . . Trap . | . . . . Miscellaneous . | . . . . Route ------- -11/Scrapyard -10/Materials -10/Mines -9/Materials History --------- Turn | Location | Event 44 | -11/Scrapyard | Discovered new exit (range 15) 80 | -11/Scrapyard | Entered Materials 317 | -10/Materials | Build established: Mutant 321 | -10/Materials | Discovered new exit (range 15) 351 | -10/Materials | Entered Mines 622 | -10/Mines | Learned location of Zion (-7) 686 | -10/Mines | Learned location of Recycling (-8) 717 | -10/Mines | Discovered new exit (range 9) 726 | -10/Mines | Learned location of Storage (-8) 777 | -10/Mines | Entered Materials 777 | -9/Materials | Accompanied by 2 allies 777 | -9/Materials | Evolved 2 slots: Utility x2 783 | -9/Materials | Led the pair of lost Derelicts to an unsafe place 1073 | -9/Materials | Core integrity fell below 50% 1107 | -9/Materials | Destroyed 10 combat bots 1114 | -9/Materials | Lost 5 parts (1p2n1u1w) 1177 | -9/Materials | First assault squad dispatched 1274 | -9/Materials | Core integrity fell below 20% 1298 | -9/Materials | Lost 7 parts (1p1n2u3w) 1470 | -9/Materials | Destroyed by G-34 Mercenary with Small Laser Last Messages --------------- 01331_ Acquired 2 matter. 01332_ K-01 Serf collects debris. 01389_ Connecting with Terminal... >>Traps(Locate) Found 6 traps in 1 array: 6x Blade Trap Map updated. 01389_ Connecting with Terminal... >>Traps(Disarm) Disarmed 6 Blade Traps. 01392_ Connecting with Terminal... 01416_ Acquired Autogun. 01428_ T-07 Excavator is excavating. 01443_ Lgt. Assault Rifle destroyed. 01446_ Imp. Heat Sink destroyed. 01453_ G-47 Trooper destroyed. 01464_ Dropped Aluminum Leg. 01464_ Acquired Aluminum Leg. 01466_ Dropped Lgt. Ion Engine. 01467_ Acquired Lgt. Nuclear Core. Map ----- +----------------------------------------------------+ | | | | | | | | | | | | | | | | | | | | | | | ???????????????????????????????????????????????? | | ???????????????????????????????????????????????? | | ????????????????##?????????????????????????????? | | ????????????????? #########????????????????????? | | ?????????????????? ????????????????????? | | ??????????????????# #????????????????????? | | ????????????????### #????????????????????? | | ????????????????# #????????????????????? | | ?????????????"" # #????????????????????? | | ?????????????T" / #????????????????????? | | ????????????????# #???##+####??????????? | | ????????????????# ##### +??????????? | | ????????????????# ###= ###+###????? | | ???????????????#! ??????# ##### ###??? | | ????????????????????????#@#???# ""#??? | | ???????????????????????##g##### """ =!!T"#??? | | ???????????????????????#=%[ # """ !! ""#??? | | ???????????????????????# !""" # """ !! ###??? | | ???????????????????????# """ + """ "#???? | | ???????????????????????# """ # T#???? | | ????????????????????#?## # "#???? | | ????????????????????? ?# # ##???? | | ???????????????????????######## #????? | | ????????????????????????????######## #???#? | | ????????????????????????????# ####### #????? | | ???????????????????????#????# """#?????# #????? | | ????????????????????????????# """#?#???# #???#? | | ???????????????? ??????????## """#?????# #????? | | ????????????????????????????# #?????# #??#?? | | ???????????????????????????## #??#??# ###??? | | ???????????????????????????## ?#?????# #????? | | ????????????????????????######+##??????## #????? | | ???????????? ???????????#!! ######### #????? | | ??????????????###+####?##! #????# | | ??????????????? #??#!! ###########????? | | ???????????????? #??#!! ## #????? | | ???????#????????? #?##!! ## """ ##???? | | ?????????????????# #??#!! ## """ #?#??? | | ????????????????## #??##### ## """ ##??#? | +----------------------------------------------------+ Best States ------------- Heat Dissipation 42 Energy Generation 10 Energy Capacity 250 Matter Stores 400 Matter Capacity 400 Sight Range 16 Robot Scan Range 10 Terrain Scan Range 20 Terrain Scan Density 10 ECM Strength 1 Evasion (%) 40 Recoil Reduction 2 Item Schematics ----------------- None Robot Schematics ------------------ None Fabricated ------------ Nothing Alien Tech Used ----------------- None Achievements -------------- None Challenges ------------ None Game ------ Seed ReflectiveReactionLance Manual? 0 Play Time 00:23:40 Cumulative 46.2 hours Start 2021.12.15 @ 23:41:13 End 2021.12.16 @ 00:08:19 Sessions 1 Manual Loads 0 Difficulty Rogue Special Mode None Game No. 63 Rogue 63 Adventurer 0 Explorer 0 Win Type - Total 0 Types 0/0/0/0/0/0/0/0/0 Lore% 21 Gallery% 31 Achievement% 21 Wizard Run 0 Options --------- ASCII 0 Keyboard 1 Movement Numpad Keybinds 0 Fullscreen 2 Font 24/Crisp Map View 113x50 Tactical HUD 1 Map Filters NONE Filters NONE Steam 1 RUN: 54c06676-ac20-4eb1-ba43-2d5a7b702859